Cogmind - Beta 13 @@@ ROGUE MODE // 2024.04.05 @ 11:40:09 Player: SovietPaperclip Result: Destroyed by D-53 Grenadier with Mini Grenade Launcher Performance ------------- Evolutions (0) 0 Regions Visited (2) 400 Robots Destroyed (27) 135 Value Destroyed (388) 388 Prototype IDs (0) 0 Alien Tech Used (0) 0 Bonus (0) 0 TOTAL SCORE: 923 Bonus ------- None Cogmind --------- Core Integrity 0/250 Matter 186/300 Energy 56/100 System Corruption 0% Temperature Cool (0) Movement Treading (160) Location -10/Mines Parts ------- > --- POWER (1) -------- (None) > --- PROPULSION (2) --- Improved Treads Improved Treads > --- UTILITY (2) ------ Cooling System Large Storage Unit > --- WEAPON (2) ------- (None) > --- INVENTORY (15) --- Light Nuclear Core Improved Treads Improved Treads Improved Treads Improved Treads Medium Storage Unit Large Storage Unit Signal Interpreter Shotgun Peak State ------------ > --- POWER ------------ Ion Engine > --- PROPULSION ------- Improved Treads Improved Treads > --- UTILITY ---------- Large Storage Unit Light Armor Plating > --- WEAPON ----------- Shotgun Shotgun > --- INVENTORY -------- Ion Engine Light Nuclear Core Improved Treads Improved Treads Improved Treads Improved Treads Improved Treads Improved Treads Heat Sink Medium Storage Unit Large Storage Unit Signal Interpreter Grenade Launcher [Rating: 13] Favorites ----------- Power Ion Engine Engine Ion Engine Propulsion Improved Treads Treads Improved Treads Utility Light Armor Plating Device Cooling System Storage Large Storage Unit Protection Light Armor Plating Weapon Shotgun Ballistic Gun Shotgun Launcher Grenade Launcher Build | -11 -10 -10 ------- Run | Yrd Mat Min Slots Evolved . | . . . Power . | . . . Propulsion . | . . . Utility . | . . . Weapon . | . . . Parts Attached 17 | 6 7 4 Power 2 | 1 1 . Engine 2 | 1 1 . Core . | . . . Reactor . | . . . Propulsion 6 | 2 2 2 Treads 6 | 2 2 2 Leg . | . . . Wheel . | . . . Hover . | . . . Flight . | . . . Utility 4 | 1 2 1 Device 1 | . . 1 Storage 2 | 1 1 . Processor . | . . . Hackware . | . . . Protection 1 | . 1 . Artifact . | . . . Weapon 5 | 2 2 1 Energy Gun . | . . . Energy Cannon . | . . . Ballistic Gun 4 | 2 2 . Ballistic Cannon . | . . . Launcher 1 | . . 1 Special Weapon . | . . . Impact Weapon . | . . . Slashing Weapon . | . . . Piercing Weapon . | . . . Special Melee Weapon . | . . . Unidentified Prototypes . | . . . Parts Lost 6 | . . 6 Power 1 | . . 1 Propulsion 2 | . . 2 Utility 1 | . . 1 Weapon 2 | . . 2 Highest Loss Streak 5 | . . 5 To Critical Strikes . | . . . Average Slot Usage (%) 98 | . 99 94 Engine 13 | . 14 12 Treads 27 | . 28 27 Storage 14 | . 14 14 Protection 12 | . 13 8 Ballistic Gun 27 | . 27 23 Naked Turns . | . . . Heaviest Build 34 | 11 34 34 Greatest Support 46 | 40 46 46 Greatest Overweight (x) 1 | . . 1 Average Overweight (x) . | . . . Largest Inventory Capacity 15 | 8 15 15 Average Capacity 13 | 7 13 15 Most Carried 15 | 5 15 12 Average Carried 9 | 2 9 11 Final Capacity 15 | 8 15 15 Final Carried 12 | 2 12 9 Class Distribution -------------------- 100% | Mutant Dominant Class ---------------- Mutant | -10/Materials Mutant | -10/Mines Resources | -11 -10 -10 ----------- Run | Yrd Mat Min Matter Collected 640 | 221 275 144 Remotely . | . . . Salvage Created 579 | . 422 157 Parts 60 | . 36 24 Haulers Intercepted 2 | . 2 . Recyclers Shooed . | . . . Parts Field Recycled . | . . . Retrieved Matter . | . . . Parts Self-Destructed . | . . . Prevented . | . . . Kills | -11 -10 -10 ------- Run | Yrd Mat Min Combat Hostiles Destroyed 22 | . 11 11 Guns 21 | . 11 10 AOE 1 | . . 1 Classes Destroyed 8 | . 6 2 Builder 1 | . 1 . Tunneler 2 | . . 2 Hauler 2 | . 2 . Operator 1 | . 1 . Watcher 1 | . 1 . Swarmer 15 | . 6 9 Grunt 5 | . 5 . Assembled 2 | . . 2 Best Kill Streak 7 | . 3 7 Combat Bots Only 6 | . 3 6 Max Kills in Single Turn 2 | . 1 2 Gunslinging 1 | . . 1 Exploded 1 | . . 1 Melee . | . . . Uniques/NPCs Destroyed . | . . . Combat | -11 -10 -10 -------- Run | Yrd Mat Min Hostile Shots Fired 99 | . 44 55 Missed 21 | . 10 11 Damage Taken 1351 | . 347 1004 Core 258 | . 14 244 Absorbed by Shields . | . . . Core Remaining (%) 100 | 100 . . Volleys Fired 56 | . 42 14 Largest 2 | . 2 2 Hottest 53 | . 46 53 Shots Fired 112 | . 84 28 Gun 109 | . 84 25 Cannon . | . . . Launcher 3 | . . 3 Special . | . . . Kinetic 109 | . 84 25 Thermal . | . . . Explosive 3 | . . 3 Electromagnetic . | . . . Robot Hit Streak 9 | . 9 5 Robot Miss Streak 4 | . 4 4 Penetration Max . | . . . Secondary Targets 2 | . . 2 Max Gunslinging Chain 1 | . . 1 Shots Hit Robots 72 | . 54 18 Core Hits 43 | . 26 17 Critical Kills . | . . . Critical Parts Destroyed . | . . . Critical Strikes . | . . . Melee Attacks . | . . . Impact . | . . . Slashing . | . . . Piercing . | . . . Sneak Attacks . | . . . Combat Hostiles . | . . . Follow-up Attacks . | . . . Damage Inflicted 1050 | . 663 387 Guns 918 | . 663 255 Cannons . | . . . Explosions 132 | . . 132 Melee . | . . . Ramming . | . . . Kinetic 918 | . 663 255 Thermal . | . . . Explosive 132 | . . 132 Electromagnetic . | . . . Impact . | . . . Slashing . | . . . Piercing . | . . . Highest Corruption . | . . . Average Corruption . | . . . Corruption Purged . | . . . Corruption Blocked . | . . . Overload Shots . | . . . Overflow Damage 23 | . . 23 Projectiles . | . . . Explosions 23 | . . 23 Melee . | . . . Knockbacks . | . . . Impact . | . . . Kinetic . | . . . Secondary . | . . . Self-Inflicted Damage 12 | . . 12 Shots 1 | . . 1 Rammed . | . . . Targets Rammed . | . . . Kicked . | . . . Crushed . | . . . Highest Temperature 19 | . 19 . Average Temperature 7 | . 7 . Received Heat Transfer 87 | . 87 . Siege Activations . | . . . Robots Corrupted . | . . . Combat Hostiles . | . . . Parts Fried . | . . . Impact Corruptions . | . . . Robots Melted . | . . . Combat Hostiles . | . . . Parts Melted . | . . . Heat Transferred . | . . . Parts Sabotaged . | . . . Parts Stolen . | . . . Parts Stripped . | . . . Power Chain Reactions . | . . . Alert | -11 -10 -10 ------- Run | Yrd Mat Min Peak Influence 283 | . 207 283 Initial 25 | . . 25 Average 82 | . 66 168 Maximum Alert Level 1 | . 1 1 Low Security (%) 90 | 100 98 58 Level 1 9 | . 1 41 Level 2 . | . . . Level 3 . | . . . Level 4 . | . . . Level 5 . | . . . High Security . | . . . Max Security . | . . . Squads Dispatched 2 | . 2 . Investigation 1 | . 1 . Extermination . | . . . Reinforcement 1 | . 1 . Assault . | . . . Garrison . | . . . Intercept . | . . . Searches Triggered . | . . . Construction Impeded . | . . . Haulers Reinforced . | . . . Active Scanning Responses . | . . . Cargo Convoy Interrupts . | . . . Stealth | -11 -10 -10 --------- Run | Yrd Mat Min Distress Signals 1 | . 1 . Communications Jammed . | . . . Distress Signals . | . . . Times Spotted 39 | . 21 18 Peak Tracking Total 10 | . 4 10 Tactical Retreats 2 | . 2 . Traps | -11 -10 -10 ------- Run | Yrd Mat Min Traps Triggered 2 | . 2 . Indirectly . | . . . Trap Hack Attempts . | . . . Triggered . | . . . Disarmed . | . . . Reprogrammed . | . . . Reused . | . . . Traps Extracted . | . . . Installed . | . . . Triggered . | . . . Machines | -11 -10 -10 ---------- Run | Yrd Mat Min Machines Disabled . | . . . Max in Single Turn . | . . . Machines Repaired . | . . . Machines Dismantled . | . . . Machines Sabotaged . | . . . Overloaded Fab Kills . | . . . Hacking | -11 -10 -10 --------- Run | Yrd Mat Min Machines Accessed 5 | . 5 . Terminals 5 | . 5 . Fabricators . | . . . Repair Stations . | . . . Recycling Units . | . . . Scanalyzers . | . . . Garrison Access . | . . . Total Hacks 11 | . 11 . Successful 7 | . 7 . Failed 4 | . 4 . Catastrophic 1 | . 1 . Database Lockouts . | . . . Manual . | . . . Terminals 11 | . 11 . Fabricators . | . . . Repair Stations . | . . . Recycling Units . | . . . Scanalyzers . | . . . Garrison Access . | . . . Terminal Hacks 7 | . 7 . Robot Analysis 1 | . 1 . Emergency Access Points 2 | . 2 . Alert Level 1 | . 1 . Unreport Threat 1 | . 1 . Hauler Manifests 2 | . 2 . Fabricator Hacks . | . . . Repair Station Hacks . | . . . Recycling Unit Hacks . | . . . Scanalyzer . | . . . Garrison Access Hacks . | . . . Unauthorized Hacks . | . . . Terminals . | . . . Fabricators . | . . . Repair Stations . | . . . Recycling Units . | . . . Scanalyzers . | . . . Garrison Access . | . . . Data Cores Recovered . | . . . Used . | . . . Hacking Detections 3 | . 3 . Full Trace Events . | . . . Feedback Events . | . . . Feedback Blocked . | . . . Robot Schematics Acquired . | . . . Robots Built . | . . . Authchips . | . . . Time . | . . . Total Robot Build Rating . | . . . Part Schematics Acquired . | . . . Parts Built . | . . . Authchips . | . . . Time . | . . . Total Part Build Rating . | . . . Parts Repaired . | . . . Time . | . . . Parts Recycled . | . . . Recycled Matter . | . . . Retrieved Matter . | . . . Retrieved Components . | . . . Parts Scanalyzed . | . . . Part Schematics Acquired . | . . . Parts Damaged . | . . . Bothacking | -11 -10 -10 ------------ Run | Yrd Mat Min Used RIF Installer . | . . . Robots Hacked . | . . . Non-combat . | . . . Combat . | . . . Robot Hacks Applied . | . . . Relay Couplers Released . | . . . Fabnet Peak Effective % . | . . . Robots Rewired . | . . . Allies Hacked . | . . . Hacks Repelled . | . . . Allies | -11 -10 -10 -------- Run | Yrd Mat Min Total Allies . | . . . Largest Group . | . . . Highest-Rated Group . | . . . Highest-Rated Ally . | . . . Total Orders . | . . . Ally Attacks . | . . . Total Damage . | . . . Kills . | . . . Allies Corrupted . | . . . Allies Melted . | . . . Intel | -11 -10 -10 ------- Run | Yrd Mat Min Robot Analysis Total 1 | . 1 . Derelict Logs Recovered 1 | . . 1 Drone Launches . | . . . Drone Recoveries . | . . . Exploration | -11 -10 -10 ------------- Run | Yrd Mat Min Turns Passed 1425 | 73 1087 265 Spaces Moved 747 | 45 569 133 Core 11 | 11 . . Treads 736 | 34 569 133 Legs . | . . . Wheels . | . . . Hover . | . . . Flight . | . . . Fastest Speed 50 | 50 160 160 Average Speed 158 | 133 160 162 Slowest Speed 240 | 160 160 240 Overloaded Moves . | . . . Propulsion Burnouts . | . . . Robots Hopped . | . . . Cave-ins Triggered . | . . . Exploration Rate (%) 37 | 4 76 33 Regions Visited 2 Branch Regions 1 Pre-discovered Areas 1 | . . 1 Known Exits Taken . | . . . Unknown Exits Taken 2 | 1 1 . Scrap Searched . | . . . Spaces Dug . | . . . Terrain Destroyed 22 | . . 22 Melee . | . . . Projectile . | . . . AOE 22 | . . 22 Terrain Rammed . | . . . Walls Destroyed . | . . . Machines Disabled . | . . . Actions | -11 -10 -10 --------- Run | Yrd Mat Min Total 879 | 58 668 153 Wait 18 | . 16 2 Move 745 | 44 568 133 Hop . | . . . Pick Up 31 | 8 23 . Fast Attach . | . . . Attach 12 | 6 3 3 Detach . | . . . Swap 5 | . 4 1 Drop 12 | . 12 . Fire 56 | . 42 14 Melee . | . . . Ram . | . . . Kick . | . . . Crush . | . . . Escape Stasis . | . . . Rewire . | . . . Trap . | . . . Miscellaneous . | . . . Route ------- -11/Scrapyard -10/Materials (discovered 4 exits: [*Mat x3] / [*Min]) -10/Mines History --------- Turn | Location | Event 5 | -11/Scrapyard | Discovered new exit (range 15) 74 | -11/Scrapyard | Entered Materials 303 | -10/Materials | Build established: Mutant 564 | -10/Materials | Discovered new exit (range 10) 696 | -10/Materials | Discovered new exit (range 6) 753 | -10/Materials | Discovered new exit (range 9) 804 | -10/Materials | Discovered new exit (range 14) 1161 | -10/Materials | Entered Mines 1313 | -10/Mines | Learned location of Storage (-8) 1373 | -10/Mines | Assembled infested the area 1405 | -10/Mines | Met 8R-AWN 1408 | -10/Mines | Core integrity fell below 50% 1423 | -10/Mines | Core integrity fell below 20% 1426 | -10/Mines | Destroyed by D-53 Grenadier with Mini Grenade Launcher Last Messages --------------- 01418_ HV Slug penetrates as-26366. 01418_ as-26366 destroyed. 01418_ HV Slug penetrates Wall. 01418_ HV Slug penetrates Earth. 01419_ The unstable cave ceiling collapses. 01420_ HV Slug penetrates D-53 Grenadier. 01420_ D-53 Grenadier suffers critical hit (Destroy). 01420_ HV Slug penetrates Earth. 01420_ HV Slug penetrates D-53 Grenadier. 01420_ D-53 Grenadier suffers critical hit (Destroy). 01421_ Acquired 8 matter. 01422_ as-08023 destroyed. 01423_ HV Slug penetrates D-53 Grenadier. 01423_ D-53 Grenadier suffers critical hit (Destroy). 01423_ D-53 Grenadier destroyed. 01425_ HV Slug penetrates Earth. 01426_ as-68529 destroyed. Map ----- +----------------------------------------------------+ | ????????????????? ?????????????????? | | ?????????????????# ??????????????????? | | ?????????????????# ???????????####???? | | ?????????????????# ?????????### ##??? | | ?????????????????# #????????## ##?# | | ????????????????## #???????## ### | | ???????????????## ###????## | | ??????????????## ###### | | ??????????????# ##### | | ?????????????## ##???## | | ?????????????# ###### #?????# | | ?????????????# # #????## ##?????? | | ?????????????## ###????####??????? | | ?????????????# #??????????????? | | ?????????????# #??????????????? | | ?????????????# # ???????? | | ????????????? !%= #??#####?????????? | | ???????###??## ] # ##????????????????? | | ??????## #?# #?????????????????? | | ?????## ## #?????????????????? | | ????## #?????????????????? | | ????# ###?????????????????? | | ????# # #???????????????????? | | ?????# $ #???????????????????? | | ?????#;; g #???????????????????? | | ?????#### < @# #???????????????????? | | ????????# #???????????????????? | | ???????# ####???????????????????? | | ??????# ## ??????????????????????? | | ?????# %% ##?##?????????????????????? | | ?????# ;??????????????????????????? | | ?????## ##??????????????????????????? | | ??????## ;#????????????????????????????? | | ???????####?????????????????????????????? | | ????????????????????????????????????????? | | | | | | | | | | | | | | | | | | | | | | | | | | | | | | | +----------------------------------------------------+ Best States ------------- Heat Dissipation 47 Energy Generation 10 Energy Capacity 250 Matter Stores 300 Matter Capacity 300 Sight Range 16 Terrain Scan Density 10 Armor Coverage 150 Evasion (%) 50 Recoil Reduction 2 Item Schematics ----------------- None Robot Schematics ------------------ None Fabricated ------------ Nothing Alien Tech Used ----------------- None Achievements -------------- None Challenges ------------ None Game ------ Seed DefenseMagneticCapacitor Manual? 0 Play Time 00:10:47 Cumulative 39.5 hours Start 2024.04.05 @ 11:31:32 End 2024.04.05 @ 11:40:09 Sessions 1 Manual Loads 0 Difficulty Rogue Special Mode None Game No. 56 Rogue 56 Adventurer 0 Explorer 0 Win Type - Total 1 Types 1/0/0/0/0/0/0/0/0 Lore% 21 Gallery% 27 Achievement% 27 Wizard Run 0 Options --------- Layout 1 ASCII 0 Keyboard 0 Movement Mouse Keybinds 0 Fullscreen 2 Font 32/Smallcaps Map View 50x40 Zoom Use 0% Tactical HUD 1 Map Filters NONE Filters NONE Steam 1 RUN: 25b01d5a-4a07-45fb-9c1c-2525c6112829